bitfinex/quotes_BTCUSD_20220205
["timestamp","ask_amount","ask_price","bid_price","bid_amount"]
[1644029133480,0.39489601,41430.0,41429.0,0.05]
[1644029133681,0.39489601,41430.0,41424.0,0.0217997]
[1644029133886,0.39489601,41430.0,41427.0,0.00084066]
[1644029133887,0.331226,41429.0,41427.0,0.00084066]
[1644029134084,0.379726,41429.0,41427.0,0.00084066]
[1644029134785,0.379726,41429.0,41424.0,0.02090537]
[1644029134981,0.0485,41429.0,41426.0,0.00084068]
[1644029135840,0.10980607,41428.0,41426.0,0.00084068]
[1644029136044,0.10980607,41428.0,41423.0,0.12088618]
[1644029136246,0.10980607,41428.0,41425.0,0.00084069]
[1644029137241,0.10980607,41428.0,41423.0,0.23122522]
[1644029137446,0.10980607,41428.0,41426.0,0.060342]
[1644029138945,0.07609654,41427.0,41426.0,0.060342]
[1644029139884,0.07609654,41427.0,41424.0,0.00079652]
[1644029140283,0.07609654,41427.0,41426.0,0.05]
[1644029140683,0.07609654,41427.0,41425.0,0.060339]
[1644029141083,0.10980607,41426.0,41425.0,0.060339]
[1644029142285,0.10951557,41426.0,41425.0,0.060339]
[1644029143738,0.10951557,41426.0,41423.0,0.20862466]
[1644029143939,0.10951557,41426.0,41423.0,0.20841848]
[1644029144138,0.07609654,41424.0,41423.0,0.20862466]
[1644029144339,0.07609654,41424.0,41423.0,0.20761898]
[1644029144540,0.07609654,41424.0,41423.0,0.48823502]
[1644029144940,0.07609654,41424.0,41423.0,0.33061604]
[1644029145139,0.07609654,41424.0,41423.0,0.05]
[1644029145939,0.07609654,41424.0,41423.0,0.22280029]
[1644029146340,0.07609654,41424.0,41423.0,0.05]
[1644029146539,0.18561211,41424.0,41423.0,0.05]
[1644029147789,0.18561211,41424.0,41423.0,0.110339]
[1644029151933,0.18561211,41424.0,41423.0,0.38860203]
[1644029152537,0.18561211,41424.0,41423.0,0.110339]
[1644029157598,0.18561211,41424.0,41423.0,0.39583796]
[1644029161245,0.10951557,41424.0,41423.0,0.39583796]
[1644029161647,0.18532157,41424.0,41423.0,0.39583796]
[1644029164798,0.18532157,41424.0,41423.0,0.49583796]
[1644029171289,0.18532157,41424.0,41423.0,0.44583796]
[1644029172187,0.18532157,41424.0,41423.0,0.49583796]
[1644029172388,0.18532157,41424.0,41423.0,0.44583796]
[1644029172888,0.18532157,41424.0,41423.0,0.49583796]
[1644029173943,0.18432157,41424.0,41423.0,0.49583796]
[1644029174146,0.075806,41424.0,41423.0,0.49583796]
[1644029174544,0.18432157,41424.0,41423.0,0.49583796]
[1644029177085,0.18432157,41424.0,41423.0,0.210339]
[1644029177284,0.16181021,41424.0,41423.0,0.160339]
[1644029177485,0.10851557,41424.0,41423.0,0.160339]
[1644029177784,0.16181021,41424.0,41423.0,0.160339]
[1644029178587,0.16151966,41424.0,41423.0,0.44966284]
[1644029178790,0.16151966,41424.0,41423.0,0.54966284]
[1644029179588,0.05329464,41424.0,41423.0,0.54966284]
[1644029179788,0.16151966,41424.0,41423.0,0.78589239]
[1644029187698,0.16051966,41424.0,41423.0,0.78589239]
[1644029187899,0.10822502,41424.0,41423.0,0.78589239]
[1644029188135,0.16051966,41424.0,41423.0,0.78589239]
[1644029188736,0.16051966,41424.0,41423.0,0.83439239]
[1644029191986,0.16051966,41424.0,41423.0,0.78439239]
[1644029192290,0.16051966,41424.0,41423.0,0.83439239]
[1644029194289,0.1217,41436.0,41427.0,0.120646]
[1644029194595,0.5581,41437.0,41433.0,0.05]
[1644029194791,0.00034647,41439.0,41433.0,0.0985]
[1644029194985,0.37664647,41440.0,41433.0,0.0985]
[1644029195188,0.20820884,41439.0,41434.0,0.20901593]
[1644029195386,0.3763,41440.0,41434.0,0.26933193]
[1644029195637,0.00079902,41441.0,41439.0,0.06031288]
[1644029195838,0.00079902,41441.0,41440.0,0.05]
[1644029196036,0.00034635,41442.0,41440.0,0.05]
[1644029196238,0.00034635,41447.0,41440.0,0.05]
[1644029196438,0.00079906,41442.0,41441.0,0.18501611]
[1644029196642,0.00299479,41448.0,41442.0,0.5]
[1644029196843,0.00034635,41447.0,41445.0,0.05]
[1644029197041,0.00299479,41448.0,41445.0,0.05]
[1644029197240,0.00034635,41448.0,41445.0,0.05]
[1644029197443,0.002,41454.0,41445.0,0.05]
[1644029197444,0.00034635,41449.0,41445.0,0.05]
[1644029197641,0.5757721,41453.0,41447.0,0.060298]
[1644029197642,0.00034635,41451.0,41447.0,0.060298]
[1644029197841,0.00034635,41452.0,41448.0,0.060297]
[1644029198140,0.18931845,41453.0,41448.0,0.060297]
[1644029198339,0.18831845,41453.0,41448.0,0.060297]
[1644029198639,0.00034635,41453.0,41448.0,0.22205653]
[1644029198842,0.00034635,41453.0,41448.0,0.27205653]
[1644029199240,0.00034635,41453.0,41450.0,0.06029603]
[1644029199485,0.00034635,41453.0,41451.0,0.060297]
[1644029201084,0.00034635,41453.0,41451.0,0.120595]
[1644029202985,0.00034635,41453.0,41451.0,0.060297]
[1644029204643,0.00034635,41453.0,41449.0,0.060305]
[1644029205039,0.16308121,41452.0,41449.0,0.060305]
[1644029206641,0.16308121,41452.0,41447.0,0.05]
[1644029206901,0.16308121,41452.0,41448.0,0.060308]
[1644029207694,0.00067522,41453.0,41448.0,0.060308]
[1644029208098,0.00034635,41453.0,41448.0,0.060308]
[1644029208296,0.00067522,41453.0,41448.0,0.060308]
[1644029208699,0.19079427,41453.0,41448.0,0.060308]
[1644029209098,0.19079427,41453.0,41449.0,0.05]
[1644029209099,0.00067522,41453.0,41449.0,0.05]
[1644029209399,0.00067522,41453.0,41450.0,0.120596]
[1644029209400,0.00034635,41453.0,41450.0,0.120596]
[1644029209699,0.00118617,41453.0,41450.0,0.120596]
[1644029210501,0.00034635,41453.0,41450.0,0.18089324]
[1644029210956,0.00034635,41453.0,41449.0,0.120598]
[1644029211954,0.00118617,41453.0,41449.0,0.120598]
[1644029212858,0.00034635,41453.0,41449.0,0.120598]
[1644029213059,0.00034635,41453.0,41449.0,0.180899]
[1644029213253,0.00118617,41453.0,41449.0,0.180899]
[1644029214056,0.00118617,41453.0,41450.0,0.060299]
[1644029214057,0.00034635,41453.0,41450.0,0.060299]
[1644029214257,0.00118617,41453.0,41450.0,0.18089505]
[1644029215296,0.00034635,41453.0,41451.0,0.19575178]
[1644029215496,0.00034635,41453.0,41451.0,0.25604878]
[1644029215701,0.00034635,41453.0,41452.0,0.0485]
[1644029216703,0.00034635,41453.0,41452.0,0.3419522]
[1644029216898,0.00034635,41453.0,41452.0,0.58961504]
[1644029217097,0.00034635,41453.0,41452.0,0.68961504]
[1644029220041,0.00023474,41453.0,41452.0,0.68961504]
[1644029220436,0.00023474,41453.0,41452.0,0.39616284]
[1644029221738,0.00023474,41453.0,41452.0,0.67606704]
[1644029222588,0.24023474,41453.0,41452.0,0.67606704]
[1644029225837,0.24023474,41453.0,41452.0,0.39616284]
[1644029226039,0.24023474,41453.0,41452.0,0.29616284]
[1644029226245,0.24023474,41453.0,41452.0,0.39616284]
[1644029228641,0.24023474,41453.0,41452.0,0.29616284]
[1644029228845,0.24023474,41453.0,41452.0,0.39616284]
[1644029229041,0.24023474,41453.0,41452.0,0.72429789]
[1644029229244,0.24023474,41453.0,41452.0,0.43676145]
[1644029230486,0.24023474,41453.0,41452.0,0.72699813]
[1644029230888,0.24023474,41453.0,41452.0,0.43676145]
[1644029231187,0.24023474,41453.0,41452.0,0.15352825]
[1644029231394,0.24023474,41453.0,41452.0,0.05352825]
[1644029235138,0.24023474,41453.0,41451.0,0.46175273]
[1644029235340,0.24023474,41453.0,41450.0,0.060298]
[1644029235740,0.24023474,41453.0,41450.0,0.120594]
[1644029236545,0.24023474,41453.0,41450.0,0.241174]
[1644029237587,0.24023474,41453.0,41451.0,0.12058008]
[1644029240390,0.24023474,41453.0,41451.0,0.18086908]
[1644029241044,0.24023474,41453.0,41451.0,0.24115883]
[1644029241942,0.24013838,41453.0,41451.0,0.24115883]
[1644029242642,0.24013838,41453.0,41451.0,0.29115883]
[1644029245487,0.23913838,41453.0,41451.0,0.29115883]
[1644029246688,0.23913838,41453.0,41451.0,0.28615883]
[1644029248940,0.23913838,41453.0,41452.0,0.180849]
[1644029250441,0.23913838,41453.0,41452.0,0.21575421]
[1644029258045,0.23913838,41453.0,41452.0,0.21566266]
[1644029260395,0.23913838,41453.0,41452.0,0.31566266]
[1644029260595,0.23913838,41453.0,41452.0,0.41566266]
[1644029264447,0.23913838,41453.0,41452.0,0.70633519]
[1644029264644,0.23913838,41453.0,41452.0,0.70948246]
[1644029264851,0.23913838,41453.0,41452.0,0.75798246]
[1644029267298,0.23913838,41453.0,41452.0,1.25798246]
[1644029268300,0.002,41454.0,41453.0,0.75]
[1644029268598,0.003,41455.0,41454.0,0.75]
[1644029268599,0.00232923,41455.0,41454.0,0.75]
[1644029268799,0.00232923,41455.0,41454.0,1.28836249]
[1644029269097,0.001,41457.0,41455.0,0.77055207]
[1644029269300,0.001,41457.0,41456.0,0.12666607]
[1644029271548,0.001,41457.0,41456.0,0.4080478]
[1644029271949,0.001,41457.0,41456.0,0.5080478]
[1644029275390,0.241,41457.0,41456.0,0.5080478]
[1644029275795,0.241,41457.0,41456.0,0.22666607]
[1644029275990,0.241,41457.0,41456.0,0.12666607]
[1644029279949,0.241,41457.0,41456.0,0.02816607]
[1644029282394,0.241,41457.0,41455.0,0.40138307]
[1644029284394,0.241,41457.0,41455.0,0.45138307]
[1644029286047,0.241,41457.0,41455.0,0.40138307]
[1644029291696,0.24092132,41457.0,41455.0,0.40138307]
[1644029293545,0.24092132,41457.0,41455.0,0.45138307]
[1644029296350,0.24092132,41457.0,41455.0,0.40138307]
[1644029303347,0.24092132,41457.0,41456.0,0.05]
[1644029303547,0.24092132,41457.0,41455.0,0.40138307]
[1644029305302,0.24092132,41457.0,41455.0,0.060277]
[1644029305303,0.08639981,41456.0,41455.0,0.060277]
[1644029305504,0.38639981,41456.0,41453.0,0.060297]
[1644029305701,0.331226,41455.0,41443.0,0.06860386]
[1644029305908,0.38639981,41456.0,41443.0,0.06860386]
[1644029306099,0.331226,41453.0,41443.0,0.01860386]
[1644029306298,0.25703957,41448.0,41443.0,0.01860386]
[1644029306500,0.20736356,41445.0,41443.0,0.01860386]
[1644029306701,0.25703957,41448.0,41440.0,0.19150269]
[1644029307306,0.08399961,41443.0,41442.0,0.060312]
[1644029307504,0.08399961,41443.0,41436.0,0.01918051]
[1644029307900,0.29521276,41442.0,41436.0,0.01918051]
[1644029308148,0.21523257,41440.0,41436.0,0.01918051]
[1644029308347,0.2892178,41439.0,41436.0,0.01918051]
[1644029308747,0.2892178,41439.0,41433.0,0.1843083]
[1644029309346,0.49375218,41439.0,41435.0,0.060321]
[1644029310346,0.27139261,41438.0,41435.0,0.060321]
[1644029310546,0.27139261,41438.0,41435.0,0.0611626]
[1644029310747,0.20453438,41439.0,41435.0,0.0611626]
[1644029311147,0.31368578,41442.0,41435.0,0.0611626]
[1644029311548,0.31368578,41442.0,41435.0,0.060321]
[1644029312199,0.1842202,41438.0,41435.0,0.060321]
[1644029312601,0.1842202,41438.0,41433.0,0.060323]
[1644029313197,0.28031791,41439.0,41433.0,0.060323]
[1644029313398,0.3070197,41442.0,41433.0,0.060323]
[1644029313998,0.3070197,41442.0,41435.0,0.0008411]
[1644029314197,0.15453838,41437.0,41435.0,0.0008411]
[1644029314398,0.15453838,41437.0,41436.0,0.060319]
[1644029314798,0.38309852,41442.0,41436.0,0.060319]
[1644029315103,0.3070197,41442.0,41436.0,0.060319]
[1644029315299,0.3070197,41442.0,41437.0,0.00084108]
[1644029316054,0.44416055,41443.0,41437.0,0.00084108]
[1644029316055,0.30520176,41446.0,41439.0,0.060308]
[1644029316254,0.30520176,41446.0,41439.0,0.120616]
[1644029316453,0.30520176,41446.0,41439.0,0.060308]
[1644029317054,0.15600203,41444.0,41439.0,0.060308]
[1644029317756,0.15600203,41444.0,41439.0,0.06114905]
[1644029318753,0.15600203,41444.0,41439.0,0.060308]
[1644029319054,0.15600203,41444.0,41439.0,0.06114905]
[1644029319253,0.15600203,41444.0,41439.0,0.00084105]
[1644029319501,0.15500203,41444.0,41439.0,0.00084105]
[1644029319901,0.26993723,41443.0,41438.0,0.120616]
[1644029320099,0.26993723,41443.0,41439.0,0.00084105]
[1644029321103,0.26993723,41443.0,41438.0,0.120616]
[1644029321300,0.26993723,41443.0,41439.0,0.00084106]
[1644029322300,0.26993723,41443.0,41435.0,0.120629]
[1644029322501,0.19466723,41436.0,41435.0,0.120629]
[1644029324549,0.26507386,41437.0,41435.0,0.120629]
[1644029325450,0.26993723,41443.0,41435.0,0.120629]
[1644029325655,0.14895585,41440.0,41435.0,0.120629]
[1644029326050,0.14895585,41440.0,41437.0,0.00084073]
[1644029326252,0.14895585,41440.0,41438.0,0.060317]
[1644029329004,0.23633089,41442.0,41438.0,0.060317]
[1644029329604,0.23633089,41442.0,41438.0,0.06115772]
[1644029329803,0.38626255,41442.0,41438.0,0.06115772]
[1644029330004,0.38626255,41442.0,41438.0,0.23057082]
[1644029330204,0.23633089,41442.0,41438.0,0.23057082]
[1644029330648,0.23633089,41442.0,41439.0,0.06031]
[1644029331049,0.23633089,41442.0,41439.0,0.241239]
[1644029333354,0.23633089,41442.0,41439.0,0.180929]
[1644029333548,0.23633089,41442.0,41439.0,0.120619]
[1644029341909,0.17961177,41443.0,41439.0,0.120619]
[1644029342102,0.17961177,41443.0,41439.0,0.180929]
[1644029343002,0.17961177,41443.0,41439.0,0.1817697]
[1644029343501,0.17961177,41443.0,41439.0,0.24207893]
[1644029343706,0.24,41444.0,41439.0,0.24207893]
[1644029343904,0.24,41444.0,41439.0,0.24123823]
[1644029344103,0.23989452,41444.0,41439.0,0.24207893]
[1644029344606,0.44538481,41444.0,41439.0,0.24207893]
[1644029345103,0.44538481,41444.0,41439.0,0.180929]
[1644029345304,0.44538481,41444.0,41439.0,0.1817697]
[1644029345763,0.23989452,41444.0,41439.0,0.1817697]
[1644029345965,0.23989452,41444.0,41440.0,0.120619]
[1644029346567,0.23989452,41444.0,41440.0,0.12145969]
[1644029346766,0.23989452,41444.0,41440.0,0.18176769]
[1644029347165,0.23989452,41444.0,41442.0,0.20565126]
[1644029347368,0.23989452,41444.0,41443.0,0.060307]
[1644029353353,0.23989452,41444.0,41443.0,0.05965237]
[1644029356054,0.51017429,41444.0,41443.0,0.05965237]
[1644029356902,0.23989452,41444.0,41441.0,0.06115467]
[1644029357104,0.23989452,41444.0,41441.0,0.060314]
[1644029357305,0.23989452,41444.0,41441.0,0.00084067]
[1644029358302,0.23989452,41444.0,41439.0,0.120622]
[1644029358603,0.23989452,41444.0,41440.0,0.00084068]
[1644029358801,0.23989452,41444.0,41441.0,0.060314]
[1644029361557,0.23989452,41444.0,41441.0,0.120624]
[1644029361960,0.23989452,41444.0,41442.0,0.120622]
[1644029364504,0.26928044,41443.0,41442.0,0.120622]
[1644029369856,0.23989452,41444.0,41442.0,0.120622]
[1644029375653,0.27625418,41443.0,41442.0,0.120622]
[1644029376455,0.23989452,41444.0,41442.0,0.120622]
[1644029377056,0.27226256,41443.0,41442.0,0.120622]
[1644029377256,0.27215261,41443.0,41442.0,0.120622]
[1644029378557,0.23989452,41444.0,41442.0,0.120622]
[1644029380301,0.23989452,41444.0,41442.0,0.18093341]
[1644029383250,0.23989452,41444.0,41442.0,0.120622]
[1644029388704,0.23989452,41444.0,41440.0,0.0422964]
[1644029388903,0.23989452,41444.0,41441.0,0.00020765]
[1644029389103,0.23989452,41444.0,41440.0,0.10281805]
[1644029389301,0.23989452,41444.0,41440.0,0.2234457]
[1644029389503,0.23989452,41444.0,41442.0,0.120622]
[1644029391353,0.23989452,41444.0,41442.0,0.24124596]
[1644029393157,0.23989452,41444.0,41440.0,0.00020765]
[1644029393158,0.23989452,41444.0,41443.0,0.06031]
[1644029395101,0.23489452,41444.0,41440.0,0.00020765]
[1644029395302,0.23489452,41444.0,41439.0,0.05104837]
[1644029395602,0.23489452,41444.0,41439.0,0.05020765]
[1644029395806,0.23489452,41444.0,41439.0,0.05084071]
[1644029396203,0.28142605,41443.0,41439.0,0.05084071]
[1644029396604,0.23489452,41444.0,41439.0,0.05084071]
[1644029396802,0.23489452,41444.0,41439.0,0.05020765]
[1644029397004,0.23489452,41444.0,41439.0,0.05104835]
[1644029397403,0.25657979,41440.0,41439.0,0.05104835]
[1644029397604,0.25657979,41440.0,41439.0,0.0508407]
[1644029398004,0.25657979,41440.0,41439.0,0.05]
[1644029399052,0.23489452,41444.0,41439.0,0.05]
[1644029399255,0.23489452,41444.0,41443.0,0.05]
[1644029399657,0.23489452,41444.0,41443.0,0.0985]
[1644029401455,0.23489452,41444.0,41443.0,0.38056129]
[1644029401654,0.23489452,41444.0,41443.0,0.0985]
[1644029402903,0.23489452,41444.0,41443.0,0.0485]
[1644029403104,0.23489452,41444.0,41443.0,0.0985]
[1644029403303,0.23489452,41444.0,41443.0,0.0485]
[1644029404003,0.41073497,41444.0,41443.0,0.0485]
[1644029404204,0.41073497,41444.0,41443.0,0.0985]
[1644029404402,0.23489452,41444.0,41443.0,0.0485]
[1644029407155,0.23489452,41444.0,41443.0,0.0985]
[1644029408357,0.23489452,41444.0,41443.0,0.0485]
[1644029408557,0.23489452,41444.0,41443.0,0.0985]
[1644029409403,0.23489452,41444.0,41443.0,0.0485]
[1644029409608,0.85,41443.0,41435.0,0.10000368]
[1644029409811,0.29340052,41442.0,41435.0,3.68e-06]
[1644029410013,0.01637146,41439.0,41435.0,3.68e-06]
[1644029410207,0.379726,41438.0,41435.0,3.68e-06]
[1644029410407,2.6240965,41436.0,41435.0,3.68e-06]
[1644029410607,3.0038225,41436.0,41435.0,3.68e-06]
[1644029411006,3.16957814,41436.0,41435.0,3.68e-06]
[1644029411610,3.6100225,41436.0,41435.0,3.68e-06]
[1644029412405,0.41442892,41427.0,41425.0,0.05]
[1644029412608,0.32656122,41426.0,41421.0,0.17066]
[1644029412808,0.0485,41426.0,41421.0,0.17066]
[1644029413655,0.0485,41426.0,41421.0,0.17149855]
[1644029414556,0.32025105,41426.0,41421.0,0.17149855]
[1644029414761,0.32025105,41426.0,41421.0,0.230988]
[1644029414963,0.32025105,41426.0,41421.0,0.35248206]
[1644029415356,0.0485,41426.0,41421.0,0.35248206]
[1644029415959,0.0485,41426.0,41421.0,0.35164351]
[1644029416159,0.0485,41426.0,41421.0,0.35248206]
[1644029417209,0.0485,41426.0,41421.0,0.35164351]
[1644029417405,0.0485,41426.0,41423.0,0.060328]
[1644029418205,0.0485,41426.0,41421.0,0.05587147]
[1644029418407,0.0485,41426.0,41421.0,0.05503292]
[1644029418607,0.0485,41426.0,41422.0,0.00083854]
[1644029419005,0.2885,41426.0,41422.0,0.00083854]
[1644029419605,0.2885,41426.0,41421.0,0.11537392]
[1644029419805,0.27643553,41426.0,41422.0,0.00083854]
[1644029420754,0.27643553,41426.0,41421.0,0.05503292]
[1644029420957,0.27643553,41426.0,41422.0,0.00083854]
[1644029421156,0.331226,41425.0,41422.0,0.00083854]
[1644029421358,0.3,41423.0,41418.0,0.060344]
[1644029421557,0.05,41419.0,41418.0,0.060344]
[1644029421761,0.01921885,41418.0,41409.0,0.11973065]
[1644029421957,0.19027537,41414.0,41409.0,0.00503065]
[1644029422158,0.19027537,41414.0,41412.0,0.120695]
[1644029422357,0.19027537,41414.0,41412.0,0.170695]
[1644029423958,0.25952819,41416.0,41412.0,0.170695]
[1644029425005,0.01955116,41418.0,41413.0,0.060347]
[1644029425306,0.01955116,41418.0,41413.0,0.06055442]
[1644029425505,0.01921885,41418.0,41413.0,0.06055442]
[1644029425707,0.01921885,41418.0,41413.0,0.06139225]
[1644029425909,0.02005659,41418.0,41413.0,0.06139225]
[1644029426108,0.19513837,41417.0,41413.0,0.06139225]
[1644029426708,0.19513837,41417.0,41413.0,0.06055442]
[1644029426912,0.19513837,41417.0,41413.0,0.06139226]
[1644029427909,0.19513837,41417.0,41413.0,0.06055442]
[1644029428157,0.19513837,41417.0,41413.0,0.06139226]
[1644029428759,0.19513837,41417.0,41413.0,0.22431064]
[1644029428959,0.00083774,41418.0,41413.0,0.22431064]
[1644029429161,0.2992893,41419.0,41413.0,0.22340179]
[1644029429360,0.00083774,41418.0,41413.0,0.06132125]
[1644029429963,0.24083774,41418.0,41413.0,0.06132125]
[1644029430361,0.18016729,41414.0,41413.0,0.06048341]
[1644029430561,0.24083774,41418.0,41413.0,0.06111382]
[1644029430760,0.24083774,41418.0,41413.0,0.06132124]
[1644029430960,0.05,41415.0,41413.0,0.06111382]
[1644029431560,0.18246424,41414.0,41413.0,0.06027599]
[1644029433211,0.46360902,41414.0,41413.0,0.06027599]
[1644029433409,0.07453491,41413.0,41412.0,0.00020742]
[1644029433610,0.39501778,41413.0,41411.0,0.00083786]
[1644029433812,0.67651853,41412.0,41411.0,0.00083786]
[1644029434110,0.67651853,41412.0,41410.0,0.00083788]
[1644029434111,0.6353088,41412.0,41410.0,0.00083788]
[1644029434308,0.50468028,41411.0,41410.0,0.00083788]
[1644029434508,0.55318028,41411.0,41410.0,0.00083788]
[1644029435111,0.55318028,41411.0,41405.0,0.00020742]
[1644029435310,0.55318028,41411.0,41408.0,0.00083789]
[1644029435512,0.05,41409.0,41408.0,0.00083789]
[1644029435761,0.0985,41409.0,41408.0,0.00083789]
[1644029436359,0.0985,41409.0,41403.0,0.00020742]
[1644029436560,0.05,41405.0,41402.0,0.00020742]
[1644029436762,0.26437958,41405.0,41401.0,0.08057642]
[1644029436963,0.05,41405.0,41402.0,0.00020742]
[1644029437162,0.05,41405.0,41401.0,0.08057642]
[1644029437761,0.05,41405.0,41401.0,0.08141441]
[1644029437962,0.30751748,41405.0,41401.0,0.08141441]
[1644029438661,0.05,41405.0,41401.0,0.08141441]
[1644029438863,0.04970935,41405.0,41401.0,0.08141441]
[1644029439063,0.04970935,41406.0,41404.0,0.00029065]
[1644029439263,0.05,41407.0,41401.0,0.07670506]
[1644029439510,0.0985,41407.0,41401.0,0.07670506]
[1644029439915,0.0985,41407.0,41401.0,0.07586707]
[1644029440311,0.19141433,41404.0,41402.0,0.00083797]
[1644029441111,0.05,41407.0,41401.0,0.07586707]
[1644029441312,0.24,41404.0,41401.0,0.07670506]
[1644029442311,0.24,41404.0,41401.0,0.07586707]
[1644029442912,0.05,41402.0,41401.0,0.07586707]
[1644029443561,0.24,41404.0,41401.0,0.07586707]
[1644029443762,0.05,41402.0,41401.0,0.07586707]
[1644029445362,0.24,41404.0,41401.0,0.07586707]
[1644029445562,0.05,41403.0,41401.0,0.07586707]
[1644029450111,0.24,41404.0,41401.0,0.07586707]
[1644029452466,0.29,41404.0,41401.0,0.07586707]
[1644029455010,0.29,41404.0,41401.0,0.07607364]
[1644029455812,0.29,41404.0,41401.0,0.07586707]
[1644029456011,0.29,41404.0,41401.0,0.07607364]
[1644029457011,0.29,41404.0,41401.0,0.07586707]
[1644029457211,0.29,41404.0,41401.0,0.07607364]
[1644029458164,0.29,41404.0,41401.0,0.07586707]
[1644029458360,0.29,41404.0,41401.0,0.07607364]
[1644029459464,0.29,41404.0,41401.0,0.07586707]
[1644029459662,0.29,41404.0,41401.0,0.07607364]
[1644029460563,0.29,41404.0,41401.0,0.07586707]
[1644029460768,0.29,41404.0,41401.0,0.07607364]
[1644029461764,0.29,41404.0,41401.0,0.07586707]
[1644029462011,0.29,41404.0,41401.0,0.07607364]
[1644029462912,0.29,41404.0,41401.0,0.07586707]
[1644029463113,0.29,41404.0,41401.0,0.07607364]
[1644029463316,0.28993111,41404.0,41401.0,0.07607364]
[1644029464214,0.28993111,41404.0,41401.0,0.07586707]
[1644029464412,0.28993111,41404.0,41401.0,0.07607364]
[1644029465113,0.08623564,41403.0,41401.0,0.07607364]
[1644029465316,0.28993111,41404.0,41401.0,0.07586707]
[1644029465764,0.28993111,41404.0,41401.0,0.07607364]
[1644029466565,0.28993111,41404.0,41401.0,0.07586707]
[1644029466765,0.28993111,41404.0,41401.0,0.07607364]
[1644029471010,0.46761043,41404.0,41401.0,0.07607364]
[1644029471215,0.28993111,41404.0,41401.0,0.07607364]
[1644029472212,0.18241886,41403.0,41401.0,0.07607364]
[1644029472414,0.18241886,41403.0,41401.0,0.07586707]
[1644029472811,0.28993111,41404.0,41401.0,0.07586707]
[1644029473013,0.28993111,41404.0,41401.0,0.07607364]
[1644029473869,0.15631057,41403.0,41401.0,0.07607364]
[1644029474065,0.15631057,41403.0,41401.0,0.07586707]
[1644029474471,0.28993111,41404.0,41401.0,0.07586707]
[1644029474672,0.28993111,41404.0,41401.0,0.07607364]
[1644029475068,0.28993111,41404.0,41401.0,0.07586707]
[1644029475466,0.15056897,41403.0,41401.0,0.07586707]
[1644029476473,0.21804121,41402.0,41401.0,0.07586707]
[1644029476772,0.21804121,41402.0,41401.0,0.01549807]
[1644029479415,0.48817319,41402.0,41401.0,0.01549807]
[1644029480768,0.21804121,41402.0,41401.0,0.01549807]
[1644029481574,0.49356219,41402.0,41401.0,0.01549807]
[1644029481771,0.21804121,41402.0,41401.0,0.01549807]
[1644029483373,0.21804121,41402.0,41401.0,0.07587507]
[1644029485933,0.21797742,41402.0,41401.0,0.07587507]
[1644029486335,0.28993111,41404.0,41401.0,0.07587507]
[1644029487134,0.28993111,41404.0,41401.0,0.07608164]
[1644029487336,0.46319408,41404.0,41401.0,0.07608164]
[1644029487736,0.19369941,41403.0,41401.0,0.07608164]
[1644029487936,0.19369941,41403.0,41401.0,0.07587507]
[1644029490168,0.19369941,41403.0,41401.0,0.01549807]
[1644029490569,0.19369941,41403.0,41401.0,0.07587607]
[1644029492613,0.331226,41402.0,41401.0,0.07587607]
[1644029492813,0.331226,41402.0,41401.0,0.07608264]
[1644029494216,0.331226,41402.0,41401.0,0.07587607]
[1644029495016,0.331226,41402.0,41401.0,0.01549807]
[1644029502517,0.33109731,41402.0,41401.0,0.01549807]
[1644029503366,0.29624276,41402.0,41401.0,0.01549807]
[1644029506918,0.29624276,41402.0,41401.0,0.07587607]
[1644029507813,0.29624276,41402.0,41401.0,0.01549807]
[1644029509016,0.29624276,41402.0,41401.0,0.07587607]
[1644029511167,0.29624276,41402.0,41401.0,0.01549807]
[1644029513367,0.29624276,41402.0,41401.0,0.07587607]
[1644029519468,0.29624276,41402.0,41401.0,0.01549807]
[1644029524820,0.29624276,41402.0,41401.0,0.07587707]
[1644029525021,0.19369941,41403.0,41401.0,0.07587707]
[1644029525223,0.331234,41402.0,41401.0,0.07587707]
[1644029526881,0.19369941,41403.0,41401.0,0.07587707]
[1644029527082,0.19359951,41403.0,41401.0,0.07587707]
[1644029527283,0.331234,41402.0,41401.0,0.07587707]
[1644029527482,0.19359951,41403.0,41401.0,0.07587707]
[1644029527884,0.28993111,41404.0,41401.0,0.07587707]
[1644029528983,0.55685612,41404.0,41401.0,0.07587707]
[1644029529184,0.55685612,41404.0,41402.0,0.120734]
[1644029538416,0.55685612,41404.0,41403.0,0.120735]
[1644029545015,0.55685612,41404.0,41403.0,0.12064232]
[1644029545218,0.88809012,41404.0,41403.0,0.12064232]
[1644029545416,0.88809012,41404.0,41401.0,0.01633246]
[1644029545417,1.17584159,41404.0,41401.0,0.01633246]
[1644029545618,0.331234,41403.0,41401.0,0.01633246]
[1644029545816,0.64429182,41402.0,41401.0,0.01549807]
[1644029548368,0.331234,41402.0,41401.0,0.01549807]
[1644029548967,0.331234,41402.0,41401.0,0.07587707]
[1644029555115,0.29930801,41402.0,41401.0,0.07587707]
[1644029556168,0.55685612,41404.0,41401.0,0.07587707]
[1644029558072,0.331234,41403.0,41401.0,0.07587707]
[1644029559273,0.55685612,41404.0,41401.0,0.07587707]
[1644029559516,0.28993111,41404.0,41401.0,0.07587707]
[1644029566170,0.331234,41403.0,41401.0,0.07587707]
[1644029566373,0.28993111,41404.0,41401.0,0.07587707]
[1644029566772,0.331234,41403.0,41401.0,0.07587707]
[1644029567216,0.28993111,41404.0,41401.0,0.07587707]
[1644029567418,0.331234,41403.0,41401.0,0.07587707]
[1644029568317,0.331234,41403.0,41401.0,0.01549807]
[1644029571472,0.331234,41403.0,41402.0,0.060378]
[1644029575315,0.33112874,41403.0,41402.0,0.060378]
[1644029577520,0.33112874,41403.0,41401.0,0.01549807]
[1644029578567,0.33112874,41403.0,41402.0,0.060379]
[1644029586273,0.33112874,41403.0,41401.0,0.19663928]
[1644029586475,0.28993111,41404.0,41401.0,0.31740128]
[1644029587476,0.28993111,41404.0,41402.0,0.060381]
[1644029590026,0.331234,41403.0,41401.0,0.01633278]
[1644029590226,0.331234,41403.0,41401.0,0.01549807]
[1644029590429,0.331234,41403.0,41401.0,0.01633278]
[1644029591432,0.331234,41403.0,41402.0,0.060381]
[1644029595271,0.331234,41403.0,41401.0,0.01549807]
[1644029596272,0.331234,41403.0,41401.0,0.07588007]
[1644029606224,0.331234,41403.0,41401.0,0.01549807]
[1644029607629,0.331234,41403.0,41401.0,0.07588007]
[1644029607930,0.331234,41403.0,41401.0,0.07577462]
[1644029609972,0.331234,41403.0,41401.0,0.07597982]
[1644029610771,0.331234,41403.0,41401.0,0.07577462]
[1644029610970,0.331234,41403.0,41401.0,0.07597982]